fUST/lending_fUST_20241203
["ID","MTS","AMOUNT","RATE_DAILY","PERIOD"]
[344023279,1733212246738,-302.17356,0.00030688,10]
[344023280,1733212246749,-9017.49999998,0.00030688,10]
[344023283,1733212261416,401.73,0.00016001,2]
[344023286,1733212759956,164.949639,0.00013973,2]
[344023290,1733213429989,7314.32,0.00026,60]
[344023381,1733213433497,-1169.27083333,0.0002,2]
[344023382,1733213433507,-500.27,0.0002,2]
[344023383,1733213433517,-164.949639,0.00020447,2]
[344023384,1733213433528,-150.0,0.00025,2]
[344023386,1733213433538,-509.023,0.00025212,2]
[344023387,1733213433549,-1071.853,0.00025212,2]
[344023388,1733213433559,-170.124777,0.00026047,2]
[344023389,1733213433568,-250.0,0.000261,2]
[344023390,1733213433578,-300.0,0.00026847,2]
[344023391,1733213433588,-300.0,0.00026848,2]
[344023392,1733213433598,-164.949639,0.00026921,2]
[344023394,1733213433608,-1169.27083333,0.00027397,7]
[344023396,1733213433618,-1169.27083333,0.00027397,7]
[344023398,1733213433629,-500.0,0.00027397,7]
[344023400,1733213433642,-634.56,0.00027397,7]
[344023402,1733213433653,-500.0,0.00027397,7]
[344023404,1733213433663,-500.0,0.00027397,7]
[344023406,1733213433673,-500.0,0.00027397,7]
[344023408,1733213433684,-312.47002523,0.00027397,7]
[344023410,1733213433695,-926.02886199,0.00027671,7]
[344023418,1733213437860,-243.24197134,0.00027671,7]
[344023419,1733213437870,-500.0,0.00027671,7]
[344023420,1733213437879,-500.0,0.00027671,7]
[344023421,1733213437889,-500.0,0.00027942,7]
[344023422,1733213437898,-500.0,0.00027942,7]
[344023423,1733213437908,-500.0,0.00027942,7]
[344023424,1733213437917,-501.29436845,0.00027943,7]
[344023425,1733213437927,-500.0,0.00027943,7]
[344023426,1733213437936,-168.0,0.00027943,7]
[344023427,1733213437946,-240.92,0.00027943,7]
[344023428,1733213437955,-200.0,0.00027943,7]
[344023429,1733213437965,-495.60540622,0.00027943,7]
[344023430,1733213437975,-1719.88,0.00027943,7]
[344023431,1733213437985,-500.0,0.00027943,7]
[344023432,1733213437994,-500.0,0.00027943,7]
[344023433,1733213438004,-500.0,0.00027943,7]
[344023434,1733213438014,-500.0,0.00027943,7]
[344023435,1733213438023,-118.02150613,0.00027943,7]
[344023436,1733213438036,-381.97849387,0.00027943,7]
[344023437,1733213438046,-500.0,0.00027943,7]
[344023438,1733213438056,-500.0,0.00027943,7]
[344023439,1733213438066,-214.37043271,0.00027943,7]
[344023440,1733213438076,-500.0,0.00027943,7]
[344023441,1733213438085,-784.32,0.00027944,7]
[344023442,1733213438096,-500.0,0.00027945,7]
[344023443,1733213438106,-319.9736374,0.00027945,7]
[344023444,1733213438116,-165.44734416,0.00028111,2]
[344023445,1733213438126,-606.59,0.000282,10]
[344023446,1733213438138,-990.76,0.000282,10]
[344023447,1733213438148,-193.67840358,0.00028206,19]
[344023448,1733213438158,-500.0,0.00028209,2]
[344023449,1733213438168,-500.0,0.00028209,2]
[344023450,1733213438178,-267.61291685,0.00028209,2]
[344023451,1733213438187,-500.0,0.00028209,2]
[344023452,1733213438197,-500.0,0.00028209,2]
[344023453,1733213438207,-500.0,0.00028209,2]
[344023454,1733213438217,-500.0,0.00028209,2]
[344023455,1733213438227,-500.0,0.00028209,2]
[344023456,1733213438236,-500.0,0.00028209,2]
[344023457,1733213438247,-500.0,0.00028209,2]
[344023458,1733213438256,-500.0,0.00028209,2]
[344023459,1733213438266,-500.0,0.00028209,2]
[344023460,1733213438275,-500.0,0.00028209,2]
[344023461,1733213438285,-500.0,0.00028209,2]
[344023462,1733213438295,-500.0,0.00028209,2]
[344023463,1733213438305,-500.0,0.00028209,2]
[344023464,1733213438315,-500.0,0.00028209,2]
[344023465,1733213438324,-500.0,0.00028209,2]
[344023466,1733213438335,-500.0,0.00028209,2]
[344023467,1733213438347,-500.0,0.00028209,2]
[344023468,1733213438358,-500.0,0.00028209,2]
[344023469,1733213438368,-500.0,0.00028209,2]
[344023470,1733213438378,-500.0,0.00028209,2]
[344023471,1733213438390,-500.0,0.00028209,2]
[344023472,1733213438403,-500.0,0.00028209,2]
[344023473,1733213438413,-500.0,0.00028209,2]
[344023474,1733213438425,-349.61781773,0.00028209,2]
[344023475,1733213438435,-500.0,0.00028209,2]
[344023476,1733213438446,-500.0,0.00028209,2]
[344023477,1733213438456,-500.0,0.00028209,2]
[344023478,1733213438546,-500.0,0.00028209,2]
[344023479,1733213438557,-500.0,0.00028209,2]
[344023480,1733213438566,-500.0,0.00028209,2]
[344023481,1733213438576,-500.0,0.00028209,2]
[344023482,1733213438586,-500.0,0.00028209,2]
[344023483,1733213438596,-500.0,0.00028209,2]
[344023484,1733213438606,-500.0,0.00028209,2]
[344023485,1733213438616,-500.0,0.00028209,2]
[344023486,1733213438626,-500.0,0.00028209,2]
[344023487,1733213438636,-500.0,0.00028209,2]
[344023488,1733213438651,-500.0,0.00028209,2]
[344023489,1733213438660,-500.0,0.00028209,2]
[344023490,1733213438670,-500.0,0.00028209,2]
[344023491,1733213438680,-500.0,0.00028209,2]
[344023492,1733213438690,-500.0,0.00028209,2]
[344023493,1733213438700,-500.0,0.00028209,2]
[344023494,1733213438710,-500.0,0.00028209,2]
[344023495,1733213438719,-500.0,0.00028209,2]
[344023496,1733213438729,-500.0,0.00028209,2]
[344023497,1733213438739,-500.0,0.00028209,2]
[344023498,1733213438750,-500.0,0.00028209,2]
[344023499,1733213438760,-500.0,0.00028209,2]
[344023500,1733213438770,-500.0,0.00028209,2]
[344023501,1733213438780,-500.0,0.00028209,2]
[344023502,1733213438791,-500.0,0.00028209,2]
[344023503,1733213438800,-500.0,0.00028209,2]
[344023504,1733213438810,-500.0,0.00028209,2]
[344023505,1733213438820,-500.0,0.00028209,2]
[344023506,1733213438830,-500.0,0.00028209,2]
[344023507,1733213438840,-500.0,0.00028209,2]
[344023508,1733213438850,-500.0,0.00028209,2]
[344023509,1733213438860,-500.0,0.00028209,2]
[344023510,1733213438871,-500.0,0.00028209,2]
[344023511,1733213438881,-389.05949214,0.00028209,2]
[344023512,1733213438894,-500.0,0.00028209,2]
[344023513,1733213438904,-500.0,0.00028209,2]
[344023514,1733213438915,-650.0,0.00028209,2]
[344023515,1733213438925,-500.0,0.00028209,2]
[344023516,1733213438934,-500.0,0.00028209,2]
[344023517,1733213438944,-500.0,0.00028209,2]
[344023518,1733213438954,-500.0,0.00028209,2]
[344023519,1733213438964,-500.0,0.00028209,2]
[344023520,1733213438974,-500.0,0.00028209,2]
[344023521,1733213438983,-500.0,0.00028209,2]
[344023522,1733213438993,-500.0,0.00028209,2]
[344023523,1733213439002,-500.0,0.00028209,2]
[344023524,1733213439011,-500.0,0.00028209,2]
[344023525,1733213439021,-500.0,0.00028209,2]
[344023526,1733213439030,-500.0,0.00028209,2]
[344023527,1733213439040,-500.0,0.00028209,2]
[344023528,1733213439050,-500.0,0.00028209,2]
[344023529,1733213439059,-500.0,0.00028209,2]
[344023530,1733213439068,-500.0,0.00028209,2]
[344023531,1733213439078,-500.0,0.00028209,2]
[344023532,1733213439088,-500.0,0.00028209,2]
[344023533,1733213439098,-500.0,0.00028209,2]
[344023534,1733213439107,-500.0,0.00028209,2]
[344023535,1733213439117,-500.0,0.00028209,2]
[344023536,1733213439127,-500.0,0.00028209,2]
[344023537,1733213439137,-500.0,0.00028209,2]
[344023538,1733213439147,-500.0,0.00028209,2]
[344023539,1733213439157,-500.0,0.00028209,2]
[344023540,1733213439167,-500.0,0.00028209,2]
[344023541,1733213439176,-500.0,0.00028209,2]
[344023542,1733213439186,-500.0,0.00028209,2]
[344023543,1733213439195,-500.0,0.00028209,2]
[344023544,1733213439205,-500.0,0.00028209,2]
[344023545,1733213439214,-500.0,0.00028209,2]
[344023546,1733213439224,-500.0,0.00028209,2]
[344023547,1733213439234,-500.0,0.00028209,2]
[344023548,1733213439245,-500.0,0.00028209,2]
[344023549,1733213439255,-500.0,0.00028209,2]
[344023550,1733213439264,-500.0,0.00028209,2]
[344023551,1733213439274,-500.0,0.00028209,2]
[344023552,1733213439283,-500.0,0.00028209,2]
[344023553,1733213439293,-500.0,0.00028209,2]
[344023554,1733213439303,-500.0,0.00028209,2]
[344023555,1733213439312,-500.0,0.00028209,2]
[344023556,1733213439322,-698.89509309,0.0002821,2]
[344023557,1733213439331,-500.0,0.00028216,7]
[344023558,1733213439341,-236.16,0.00028216,7]
[344023559,1733213439353,-500.0,0.00028216,7]
[344023560,1733213439363,-1719.88,0.00028217,7]
[344023562,1733213439373,-380.49,0.00028217,7]
[344023564,1733213439383,-172.81049518,0.00028217,7]
[344023566,1733213439393,-280.93,0.00028217,7]
[344023567,1733213439403,-784.32,0.00028218,7]
[344023568,1733213439413,-500.0,0.00028219,7]
[344023569,1733213439423,-165.44734415,0.00028463,2]
[344023570,1733213439435,-500.0,0.0002849,7]
[344023572,1733213439444,-500.0,0.0002849,7]
[344023573,1733213439454,-1719.88,0.00028491,7]
[344023574,1733213439463,-784.32,0.00028492,7]
[344023575,1733213439473,-306.1536,0.00028493,7]
[344023576,1733213439482,-1723.72,0.000286,2]
[344023577,1733213439492,-666.0,0.00028667,2]
[344023578,1733213439502,-500.0,0.00028764,7]
[344023579,1733213439512,-500.0,0.00028764,7]
[344023580,1733213439522,-1719.88,0.00028765,7]
[344023581,1733213439532,-784.32,0.00028766,7]
[344023582,1733213439545,-6666.0,0.000288,2]
[344023583,1733213439555,-165.44734415,0.00028815,2]
[344023584,1733213439566,-152.31,0.000289,31]
[344023585,1733213439576,-152.31,0.000289,31]
[344023586,1733213439586,-152.31,0.000289,31]
[344023587,1733213439597,-152.31,0.000289,31]
[344023588,1733213439607,-152.31,0.000289,31]
[344023589,1733213439617,-152.31,0.000289,31]
[344023590,1733213439627,-152.31,0.000289,31]
[344023591,1733213439637,-152.31,0.000289,31]
[344023592,1733213439647,-152.31,0.000289,31]
[344023593,1733213439657,-152.31,0.000289,31]
[344023594,1733213439668,-420.0,0.0002903,2]
[344023595,1733213439678,-500.0,0.00029038,7]
[344023596,1733213439688,-500.0,0.00029038,7]
[344023597,1733213439697,-1719.88,0.00029039,7]
[344023598,1733213439707,-784.32,0.0002904,7]
[344023599,1733213439717,-165.44734415,0.00029167,2]
[344023600,1733213439726,-434.49774596,0.00029312,7]
[344023601,1733213439736,-500.0,0.00029312,7]
[344023602,1733213439746,-1719.88,0.00029313,7]
[344023603,1733213439755,-784.32,0.00029314,7]
[344023604,1733213439764,-825.64,0.00029493,10]
[344023605,1733213439774,-3200.0,0.00029503,2]
[344023606,1733213439787,-165.44734415,0.00029519,2]
[344023607,1733213439797,-300.0,0.00029532,2]
[344023608,1733213439806,-500.0,0.00029586,7]
[344023609,1733213439816,-1719.88,0.00029587,7]
[344023610,1733213439825,-784.32,0.00029588,7]
[344023611,1733213439834,-500.0,0.0002986,7]
[344023612,1733213439844,-1719.88,0.00029861,7]
[344023613,1733213439853,-784.32,0.00029862,7]
[344023615,1733213439863,-165.44734415,0.00029871,2]
[344023617,1733213439872,-152.31,0.000299,31]
[344023619,1733213439882,-152.31,0.000299,31]
[344023622,1733213439893,-152.31,0.000299,31]
[344023623,1733213439902,-152.31,0.000299,31]
[344023626,1733213439912,-152.31,0.000299,31]
[344023628,1733213439922,-152.31,0.000299,31]
[344023631,1733213439934,-152.31,0.000299,31]
[344023632,1733213439944,-152.31,0.000299,31]
[344023634,1733213439953,-152.31,0.000299,31]
[344023635,1733213439962,-152.31,0.000299,31]
[344023636,1733213439972,-152.31,0.000299,31]
[344023637,1733213439982,-152.31,0.000299,31]
[344023638,1733213439992,-152.31,0.000299,31]
[344023639,1733213440002,-152.31,0.000299,31]
[344023640,1733213440011,-152.31,0.000299,31]
[344023641,1733213440021,-152.31,0.000299,31]
[344023642,1733213440030,-152.31,0.000299,31]
[344023643,1733213440039,-152.31,0.000299,31]
[344023644,1733213440049,-152.31,0.000299,31]
[344023645,1733213440059,-152.31,0.000299,31]
[344023646,1733213440069,-417.4,0.00029946,15]
[344023647,1733213440078,-1169.27083333,0.0003,3]
[344023648,1733213440087,-227.0,0.0003,2]
[344023649,1733213440096,-318.0,0.0003,2]
[344023650,1733213440105,-159.04479379,0.00030134,7]
[344023651,1733213440114,-1719.88,0.00030135,7]
[344023652,1733213440123,-784.32,0.00030136,7]
[344023653,1733213440132,-192.53062,0.00030137,120]
[344023654,1733213440144,-165.44734415,0.00030223,2]
[344023655,1733213440153,-151.0,0.000304,13]
[344023656,1733213440162,-1719.88,0.00030409,7]
[344023657,1733213440171,-784.32,0.0003041,7]
[344023658,1733213440181,-227.0,0.00030411,2]
[344023659,1733213440190,-151.0,0.000305,12]
[344023660,1733213440199,-165.44734415,0.00030575,2]
[344023661,1733213440208,-179.39830275,0.00030575,2]
[344023662,1733213440217,-1261.13144653,0.00030575,2]
[344023663,1733213440227,-548.76016747,0.00030587,2]
[344023664,1733213440236,-2000.0,0.000306,3]
[344023665,1733213440247,-151.0,0.000306,16]
[344023666,1733213440256,-214.57437637,0.00030674,2]
[344023667,1733213440265,-225.9737213,0.00030674,2]
[344023668,1733213440274,-209.80878794,0.00030674,2]
[344023669,1733213440283,-500.0,0.00030674,2]
[344023670,1733213440292,-324.79643076,0.00030674,2]
[344023671,1733213440302,-171.52230488,0.00030675,2]
[344023672,1733213440311,-164326.75779329,0.00030675,2]
[344023673,1733213440320,-698.89509309,0.00030675,7]
[344023674,1733213440330,-698.89509309,0.00030675,7]
[344023675,1733213440340,-147715.83862362,0.00030675,10]
[344023676,1733213440352,-2004786.62447012,0.00030675,10]
[344023677,1733213440363,-11209.47007177,0.00030675,7]
[344023678,1733213440372,-1817792.1255056,0.00030675,10]
[344023708,1733213443094,-1043.6,0.00029951,15]
[344023709,1733213443104,-3097.62533831,0.00030675,10]
[344023721,1733213446364,-886.5,0.00029951,15]
[344023722,1733213446374,-729222.48589451,0.00030675,10]
[344023728,1733213985583,160.219334,0.00013973,2]
[344023729,1733214016618,-1169.27083333,0.0002,2]
[344023730,1733214016642,-160.219334,0.00020807,2]
[344023731,1733214033474,1169.27083333,0.0002,2]
[344023732,1733214109082,1169.27083333,0.0002,2]
[344023733,1733214185197,1169.27083333,0.0002,2]
[344023752,1733214522719,12353.65636382,0.0002509,2]
[344023753,1733214522798,276.98717402,0.00023,2]
[344023755,1733214528563,1719.25643987,0.00026,30]
[344023759,1733214571426,1169.27083333,0.00026,2]
[344023760,1733214624380,329.33720485,0.00026,2]
[344023789,1733214632124,-1169.27083333,0.00026388,2]
[344023791,1733214632134,-506.61,0.00027397,7]
[344023792,1733214632144,-160.219334,0.00027641,2]
[344023793,1733214632153,-170.882512,0.00027646,2]
[344023794,1733214632162,-197.4216192,0.00027766,2]
[344023795,1733214632171,-198.759388,0.00027907,2]
[344023796,1733214632181,-300.0,0.00027941,2]
[344023797,1733214632190,-300.0,0.00027941,2]
[344023798,1733214632199,-500.0,0.00027942,7]
[344023799,1733214632208,-500.0,0.00027942,7]
[344023800,1733214632218,-326.34407996,0.00027942,7]
[344023801,1733214632227,-500.0,0.00027942,7]
[344023802,1733214632236,-500.0,0.00027942,7]
[344023803,1733214632245,-500.0,0.00027942,7]
[344023804,1733214632255,-500.0,0.00027942,7]
[344023805,1733214632264,-500.0,0.00027943,7]
[344023806,1733214632273,-500.0,0.00027943,7]
[344023807,1733214632283,-502.9624906,0.00027943,7]
[344023808,1733214632292,-200.18,0.00028216,7]
[344023809,1733214632303,-340.32,0.00028216,7]
[344023810,1733214632312,-500.0,0.00028216,7]
[344023811,1733214632324,-306.1536,0.00028216,7]
[344023812,1733214632334,-500.0,0.0002849,7]
[344023813,1733214632344,-1501.21804435,0.000286,2]
[344023892,1733214638031,-222.50195565,0.000286,2]
[344023894,1733214638042,-610.021694,0.00028633,2]
[344023896,1733214638052,-287.069032,0.00028633,2]
[344023898,1733214638061,-610.021694,0.0002899,2]
[344023900,1733214638070,-287.069032,0.0002899,2]
[344023902,1733214638079,-1169.27083333,0.00029038,7]
[344023904,1733214638088,-336.19972447,0.00029099,7]
[344023906,1733214638098,-168.0,0.00029099,7]
[344023908,1733214638107,-273.36722473,0.00029099,7]
[344023910,1733214638116,-879.04,0.00029311,7]
[344023912,1733214638125,-610.021694,0.00029348,2]
[344023914,1733214638134,-287.069032,0.00029348,2]
[344023916,1733214638143,-500.0,0.00029372,7]
[344023918,1733214638153,-500.0,0.00029372,7]
[344023920,1733214638162,-152.31,0.000294,31]
[344023922,1733214638171,-152.31,0.000294,31]
[344023924,1733214638180,-152.31,0.000294,31]
[344023926,1733214638189,-152.31,0.000294,31]
[344023928,1733214638198,-152.31,0.000294,31]
[344023930,1733214638208,-152.31,0.000294,31]
[344023932,1733214638217,-152.31,0.000294,31]
[344023934,1733214638227,-152.31,0.000294,31]
[344023936,1733214638236,-152.31,0.000294,31]
[344023938,1733214638245,-152.31,0.000294,31]
[344023940,1733214638254,-3200.0,0.00029515,2]
[344023942,1733214638264,-500.0,0.00029584,7]
[344023944,1733214638273,-1858.67,0.00029584,7]
[344023946,1733214638282,-172.81049518,0.00029584,7]
[344023948,1733214638291,-500.0,0.00029584,7]
[344023950,1733214638303,-500.0,0.00029584,7]
[344023952,1733214638312,-879.04,0.00029585,7]
[344023954,1733214638321,-500.0,0.00029646,7]
[344023956,1733214638331,-500.0,0.00029646,7]
[344023958,1733214638340,-610.021694,0.00029706,2]
[344023960,1733214638349,-287.069032,0.00029706,2]
[344023962,1733214638358,-165.44734415,0.0002976,2]
[344023964,1733214638367,-372.85,0.000298,3]
[344023966,1733214638376,-500.0,0.00029858,7]
[344023968,1733214638385,-1858.67,0.00029858,7]
[344023970,1733214638395,-1169.27083333,0.00029858,7]
[344023972,1733214638404,-500.0,0.00029858,7]
[344023974,1733214638413,-500.0,0.00029858,7]
[344023976,1733214638422,-879.04,0.00029859,7]
[344023977,1733214638432,-500.0,0.0002986,7]
[344023979,1733214638441,-500.0,0.0002986,7]
[344023981,1733214638451,-500.0,0.0002986,7]
[344023983,1733214638460,-500.0,0.0002986,7]
[344023986,1733214638472,-439.54107583,0.000299,2]
[344023988,1733214638482,-153.33899383,0.000299,2]
[344023990,1733214638491,-9413.34281785,0.000299,21]
[344023992,1733214638501,-151.0,0.000299,18]
[344023994,1733214638511,-151.0,0.000299,14]
[344023996,1733214638522,-151.0,0.000299,18]
[344023998,1733214638532,-940.95216577,0.000299,2]
[344023999,1733214638541,-165.44734415,0.00029909,2]
[344024001,1733214638554,-500.0,0.0002992,7]
[344024003,1733214638563,-500.0,0.0002992,7]
[344024005,1733214638573,-153.33899383,0.00029983,2]
[344024007,1733214638583,-825.64,0.0002999,10]
[344024009,1733214638592,-688.03,0.0002999,10]
[344024012,1733214638603,-573.36,0.0002999,10]
[344024013,1733214638612,-453.88390067,0.00029999,2]
[344024015,1733214638621,-225.9737213,0.00029999,2]
[344024018,1733214638631,-214.57437637,0.00029999,2]
[344024019,1733214638640,-209.80878794,0.00029999,2]
[344024021,1733214638649,-500.0,0.00029999,2]
[344024024,1733214638659,-500.0,0.00029999,2]
[344024026,1733214638669,-500.0,0.00029999,2]
[344024028,1733214638679,-500.0,0.00029999,2]
[344024038,1733214638775,-500.0,0.00029999,2]
[344024041,1733214638789,-649.9575353,0.00029999,2]
[344024043,1733214638802,-543.22883246,0.00029999,2]
[344024045,1733214638812,-500.0,0.00029999,2]
[344024047,1733214638821,-500.0,0.00029999,2]
[344024049,1733214638831,-500.0,0.00029999,2]
[344024051,1733214638840,-500.0,0.00029999,2]
[344024052,1733214638849,-500.0,0.00029999,2]
[344024053,1733214638859,-500.0,0.00029999,2]
[344024054,1733214638868,-500.0,0.00029999,2]
[344024055,1733214638878,-500.0,0.00029999,2]
[344024056,1733214638887,-500.0,0.00029999,2]
[344024057,1733214638897,-500.0,0.00029999,2]
[344024058,1733214638907,-500.0,0.00029999,2]
[344024059,1733214638916,-500.0,0.00029999,2]
[344024060,1733214638926,-500.0,0.00029999,2]
[344024061,1733214638935,-500.0,0.00029999,2]
[344024062,1733214638945,-500.0,0.00029999,2]
[344024063,1733214638954,-500.0,0.00029999,2]
[344024064,1733214638964,-500.0,0.00029999,2]
[344024065,1733214638973,-500.0,0.00029999,2]
[344024066,1733214638982,-617.58966999,0.00029999,2]
[344024067,1733214638991,-500.0,0.00029999,2]
[344024068,1733214639000,-500.0,0.00029999,2]
[344024069,1733214639010,-500.0,0.00029999,2]
[344024070,1733214639019,-500.0,0.00029999,2]
[344024071,1733214639028,-500.0,0.00029999,2]
[344024072,1733214639038,-500.0,0.00029999,2]
[344024073,1733214639047,-500.0,0.00029999,2]
[344024074,1733214639060,-500.0,0.00029999,2]
[344024075,1733214639069,-500.0,0.00029999,2]
[344024076,1733214639079,-500.0,0.00029999,2]
[344024077,1733214639088,-500.0,0.00029999,2]
[344024078,1733214639097,-500.0,0.00029999,2]
[344024079,1733214639106,-500.0,0.00029999,2]
[344024080,1733214639116,-500.0,0.00029999,2]
[344024081,1733214639125,-500.0,0.00029999,2]
[344024082,1733214639134,-500.0,0.00029999,2]
[344024083,1733214639144,-500.0,0.00029999,2]
[344024084,1733214639154,-500.0,0.00029999,2]
[344024085,1733214639163,-500.0,0.00029999,2]
[344024086,1733214639172,-500.0,0.00029999,2]
[344024087,1733214639181,-500.0,0.00029999,2]
[344024088,1733214639190,-500.0,0.00029999,2]
[344024089,1733214639200,-500.0,0.00029999,2]
[344024090,1733214639210,-500.0,0.00029999,2]
[344024091,1733214639219,-500.0,0.00029999,2]
[344024092,1733214639228,-500.0,0.00029999,2]
[344024093,1733214639238,-500.0,0.00029999,2]
[344024094,1733214639247,-500.0,0.00029999,2]
[344024095,1733214639257,-500.0,0.00029999,2]
[344024096,1733214639267,-500.0,0.00029999,2]
[344024097,1733214639276,-500.0,0.00029999,2]
[344024098,1733214639285,-500.0,0.00029999,2]
[344024099,1733214639295,-500.0,0.00029999,2]
[344024100,1733214639306,-500.0,0.00029999,2]
[344024101,1733214639316,-500.0,0.00029999,2]
[344024102,1733214639325,-500.0,0.00029999,2]
[344024103,1733214639335,-500.0,0.00029999,2]
[344024104,1733214639345,-204.33740957,0.00029999,2]
[344024105,1733214639354,-500.0,0.00029999,2]
[344024106,1733214639363,-500.0,0.00029999,2]
[344024107,1733214639373,-500.0,0.00029999,2]
[344024108,1733214639382,-500.0,0.00029999,2]
[344024109,1733214639392,-500.0,0.00029999,2]
[344024110,1733214639401,-300.0,0.00029999,2]
[344024111,1733214639411,-500.0,0.00029999,2]
[344024112,1733214639420,-500.0,0.00029999,2]
[344024113,1733214639430,-500.0,0.00029999,2]
[344024114,1733214639440,-500.0,0.00029999,2]
[344024115,1733214639451,-500.0,0.00029999,2]
[344024116,1733214639461,-500.0,0.00029999,2]
[344024117,1733214639471,-500.0,0.00029999,2]
[344024118,1733214639481,-500.0,0.00029999,2]
[344024119,1733214639491,-500.0,0.00029999,2]
[344024120,1733214639501,-500.0,0.00029999,2]
[344024121,1733214639512,-500.0,0.00029999,2]
[344024122,1733214639522,-500.0,0.00029999,2]
[344024123,1733214639531,-500.0,0.00029999,2]
[344024124,1733214639541,-500.0,0.00029999,2]
[344024125,1733214639554,-500.0,0.00029999,2]
[344024126,1733214639564,-500.0,0.00029999,2]
[344024128,1733214639573,-500.0,0.00029999,2]
[344024129,1733214639583,-500.0,0.00029999,2]
[344024130,1733214639592,-500.0,0.00029999,2]
[344024131,1733214639600,-500.0,0.00029999,2]
[344024132,1733214639610,-500.0,0.00029999,2]
[344024133,1733214639620,-500.0,0.00029999,2]
[344024135,1733214639630,-171.52230488,0.0003,2]
[344024137,1733214639640,-164326.75779329,0.0003,2]
[344024139,1733214639650,-4049321.43818423,0.0003,15]
[344024141,1733214639665,-39611.29356979,0.0003,15]
[344024143,1733214639677,-3050.39284256,0.0003,15]
[344024144,1733214639691,-654.917478,0.0003,15]
[344024147,1733214640002,-13068.84179712,0.0003,15]
[344024209,1733214643517,-370847.29785518,0.0003,15]
[344024210,1733214643529,-329.33720485,0.0003,15]
[344024211,1733214643542,-387.96752835,0.0003,15]
[344024222,1733214646176,-477.8,0.0002999,10]
[344024223,1733214646186,-905035.05525635,0.0003,15]
[344024224,1733214646200,-61390.9779228,0.0003,15]
[344024225,1733214673379,160.219334,0.00013973,2]
[344024226,1733214673592,160.219334,0.00022174,2]
[344024283,1733214973473,1169.27083333,0.00026,2]
[344024285,1733215034735,528.5843909,0.00026,2]
[344024286,1733215050157,195.35542666,0.00025978,2]
[344024287,1733215084069,-1169.27083333,0.00026186,2]
[344024288,1733215084091,-389.24036581,0.00026677,2]
[344024292,1733215172535,-300.0,0.00028105,2]
[344024293,1733215172556,-300.0,0.00028105,2]
[344024294,1733215172577,-24900.0,0.00028106,2]
[344024295,1733215172598,-1169.27083333,0.00028106,2]
[344024296,1733215172619,-1551.34,0.000286,2]
[344024297,1733215210678,1169.27083333,0.00028106,2]
[344024298,1733215260576,643.17700882,0.00028105,7]
[344024299,1733215262514,500.0,0.00028105,7]
[344024300,1733215262871,500.0,0.00028379,7]
[344024301,1733215263127,500.0,0.00028653,7]
[344024302,1733215263417,500.0,0.00028927,7]
[344024304,1733215266714,190.8071605,0.00028488,2]
[344024305,1733215286934,1169.27083333,0.00028106,2]